bitfinex/quotes_SOLUSD_20220116
["timestamp","ask_amount","ask_price","bid_price","bid_amount"]
[1642346097521,0.00824871,150.54,150.49,66.09]
[1642346097720,0.00824871,150.54,150.49,17.45716845]
[1642346097921,0.00824871,150.54,150.5,0.26]
[1642346098321,0.00824871,150.54,150.5,9.77]
[1642346098521,0.00824871,150.54,150.5,18.864]
[1642346098722,3.35498668,150.58,150.5,18.864]
[1642346098923,23.5734,150.61,150.5,18.864]
[1642346099121,23.5734,150.61,150.5,41.7727]
[1642346099523,23.8234,150.61,150.5,41.7727]
[1642346099723,44.54239586,150.6,150.5,41.7727]
[1642346101728,23.5734,150.61,150.51,66.09]
[1642346101927,349.96375768,150.62,150.52,0.26]
[1642346102128,349.96375768,150.62,150.53,9.51]
[1642346102328,349.96375768,150.62,150.54,0.26]
[1642346102527,336.09106701,150.62,150.54,9.77]
[1642346102729,336.09106701,150.62,150.54,16.837]
[1642346103030,336.09106701,150.62,150.55,40.9222226]
[1642346103228,336.09106701,150.62,150.56,9.51]
[1642346103428,336.09106701,150.62,150.56,10.02]
[1642346103828,46.8468264,150.64,150.56,10.02]
[1642346104032,25.22523388,150.61,150.56,10.02]
[1642346104730,3.35498668,150.68,150.56,10.02]
[1642346104930,3.35498668,150.68,150.56,34.0928]
[1642346105630,36.35915201,150.67,150.56,34.0928]
[1642346106032,36.35915201,150.67,150.56,9.76]
[1642346106536,36.60915201,150.67,150.56,9.51]
[1642346107333,4.9806,150.64,150.56,9.51]
[1642346107733,35.71290827,150.63,150.56,9.51]
[1642346108361,35.96290827,150.63,150.56,9.51]
[1642346108734,40.94380827,150.63,150.52,9.51]
[1642346109538,0.66091078,150.57,150.52,9.51]
[1642346109736,36.35915201,150.56,150.52,9.51]
[1642346110440,36.35915201,150.56,150.5,33.1]
[1642346110839,36.35915201,150.56,150.49,33.1]
[1642346111039,36.35915201,150.56,150.49,33.36]
[1642346111843,36.35915201,150.56,150.49,33.61]
[1642346112040,36.35915201,150.56,150.49,33.36]
[1642346113438,36.35915201,150.56,150.49,33.61]
[1642346113643,36.35915201,150.56,150.49,68.84873049]
[1642346114739,0.66091078,150.52,150.49,33.61]
[1642346114941,0.66091078,150.52,150.49,33.35]
[1642346115139,0.00091078,150.5,150.49,147.35]
[1642346116444,0.00091078,150.5,150.49,153.41439994]
[1642346117843,0.00091078,150.5,150.49,153.16439994]
[1642346119651,0.00091078,150.5,150.49,153.67439994]
[1642346120048,0.00091078,150.5,150.49,153.42439994]
[1642346120245,36.35915201,150.56,150.49,153.42439994]
[1642346120847,36.60915201,150.56,150.49,153.67439994]
[1642346121048,36.35915201,150.56,150.49,153.41439994]
[1642346121649,36.35915201,150.56,150.49,153.16439994]
[1642346121850,36.35915201,150.56,150.49,153.41439994]
[1642346122250,36.35915201,150.56,150.49,153.16439994]
[1642346122951,36.60915201,150.56,150.49,153.41439994]
[1642346124156,36.60915201,150.56,150.49,162.26773221]
[1642346124757,36.60915201,150.56,150.49,153.41439994]
[1642346128764,36.60915201,150.56,150.49,159.16439994]
[1642346128964,36.60915201,150.56,150.49,159.41439994]
[1642346129163,36.35915201,150.56,150.49,159.41439994]
[1642346129364,36.35915201,150.56,150.5,0.26]
[1642346130886,9.51,150.6,150.5,0.26]
[1642346131090,9.51,150.6,150.5,56.7344]
[1642346131287,24.9298,150.61,150.5,56.7344]
[1642346131491,24.9298,150.61,150.5,56.9844]
[1642346131690,9.51,150.63,150.5,56.9844]
[1642346131889,35.46763967,150.62,150.51,18.75652897]
[1642346132089,35.46763967,150.62,150.52,24.638]
[1642346132291,35.46763967,150.62,150.52,24.898]
[1642346132491,35.46763967,150.62,150.52,25.148]
[1642346132690,35.46763967,150.62,150.52,24.898]
[1642346132893,35.71763967,150.62,150.52,25.148]
[1642346133492,35.46763967,150.62,150.52,25.148]
[1642346134596,35.46763967,150.62,150.52,91.238]
[1642346134994,35.46763967,150.62,150.52,25.148]
[1642346135795,35.71763967,150.62,150.52,25.148]
[1642346136397,35.46763967,150.62,150.52,31.776]
[1642346136596,35.46763967,150.62,150.54,41.07064201]
[1642346136998,35.46763967,150.62,150.55,0.26]
[1642346142607,35.46763967,150.62,150.55,5.813]
[1642346142804,35.46763967,150.62,150.55,6.063]
[1642346144206,35.46763967,150.62,150.55,0.51]
[1642346144406,35.46763967,150.62,150.55,0.26]
[1642346145914,35.46763967,150.62,150.54,41.32064201]
[1642346146110,35.46763967,150.62,150.54,9.51]
[1642346147109,35.46763967,150.62,150.55,40.16192181]
[1642346147310,35.46763967,150.62,150.55,40.41192181]
[1642346147510,436.02701177,150.64,150.55,40.41192181]
[1642346147712,436.02701177,150.64,150.56,66.35]
[1642346147909,436.27701177,150.64,150.56,0.51]
[1642346149112,436.27701177,150.64,150.56,0.26]
[1642346149512,45.24485801,150.63,150.56,0.26]
[1642346151316,0.00443248,150.68,150.56,0.26]
[1642346151519,4.98428886,150.71,150.62,0.31609598]
[1642346151816,4.98428886,150.71,150.63,10.70794361]
[1642346152017,4.98428886,150.71,150.64,66.09]
[1642346152215,4.98428886,150.71,150.65,9.51]
[1642346152514,47.95913187,150.71,150.65,9.51]
[1642346152715,42.97484301,150.71,150.65,9.51]
[1642346152917,42.97484301,150.71,150.65,9.76]
[1642346153319,42.97484301,150.71,150.65,57.32551532]
[1642346153518,42.97484301,150.71,150.65,9.76]
[1642346153719,42.97484301,150.71,150.65,9.51]
[1642346153917,42.97484301,150.71,150.65,9.76]
[1642346155722,42.97484301,150.71,150.65,9.51]
[1642346155922,42.97484301,150.71,150.65,9.76]
[1642346156121,42.97484301,150.71,150.65,9.51]
[1642346156321,42.97484301,150.71,150.65,9.76]
[1642346158353,42.97484301,150.71,150.65,15.76]
[1642346158755,42.97484301,150.71,150.66,0.26]
[1642346159355,42.97484301,150.71,150.65,9.76]
[1642346159557,42.97484301,150.71,150.66,0.26]
[1642346159756,42.97484301,150.71,150.65,9.76]
[1642346163458,4.9763,150.77,150.65,9.76]
[1642346164458,43.18329076,150.76,150.66,0.26]
[1642346164757,43.18329076,150.76,150.67,10.27565874]
[1642346164957,43.18329076,150.76,150.67,10.52565874]
[1642346165358,43.18329076,150.76,150.68,0.26]
[1642346165558,43.18329076,150.76,150.68,9.77]
[1642346165857,43.18329076,150.76,150.68,10.02]
[1642346166262,43.18329076,150.76,150.68,33.8247]
[1642346168560,23.1888,150.79,150.68,41.1817]
[1642346168760,9.51,150.84,150.68,49.01358145]
[1642346168961,14.49428886,150.87,150.69,1.19890001]
[1642346169159,4.98428886,150.87,150.7,9.51]
[1642346169359,4.98428886,150.87,150.71,24.826]
[1642346169559,49.98011153,150.86,150.73,38.85228098]
[1642346169761,49.98011153,150.86,150.74,9.51]
[1642346169960,49.98011153,150.86,150.74,9.77]
[1642346170160,49.98011153,150.86,150.74,17.85188145]
[1642346170360,49.48011153,150.86,150.76,10.77565874]
[1642346170562,49.48011153,150.86,150.76,20.28565874]
[1642346170762,49.48011153,150.86,150.77,0.26]
[1642346170962,49.48011153,150.86,150.78,9.51]
[1642346171464,49.48011153,150.86,150.78,9.76]
[1642346171963,49.48011153,150.86,150.79,38.85228098]
[1642346172168,49.48011153,150.86,150.79,39.11228098]
[1642346172365,49.48011153,150.86,150.8,9.51]
[1642346172763,49.48011153,150.86,150.8,9.76]
[1642346173968,49.48011153,150.86,150.8,9.51]
[1642346174364,49.48011153,150.86,150.8,9.76]
[1642346177970,49.48011153,150.86,150.8,15.76]
[1642346178167,49.48011153,150.86,150.8,9.76]
[1642346179070,49.48011153,150.86,150.81,11.40385943]
[1642346179268,49.48011153,150.86,150.82,9.51]
[1642346183405,48.98011153,150.86,150.82,9.51]
[1642346184907,48.98011153,150.86,150.82,19.19195788]
[1642346185307,48.98011153,150.86,150.82,9.51]
[1642346186610,48.48011153,150.86,150.82,9.51]
[1642346189416,48.48011153,150.86,150.82,9.76]
[1642346195523,24.3378,150.9,150.82,9.76]
[1642346195925,24.3378,150.9,150.83,0.26]
[1642346196125,24.3378,150.9,150.84,9.51]
[1642346196423,343.54608446,150.93,150.85,13.04289696]
[1642346196424,50.13715045,150.92,150.85,13.04289696]
[1642346196624,50.13715045,150.92,150.86,9.51]
[1642346196823,50.13715045,150.92,150.86,9.76]
[1642346199125,4.98428886,150.97,150.87,0.26]
[1642346199326,27.90518886,150.97,150.88,9.51]
[1642346199529,27.90518886,150.97,150.89,22.9327]
[1642346199726,27.90518886,150.97,150.89,32.4427]
[1642346199926,27.90518886,150.97,150.89,9.51]
[1642346200127,40.92417554,150.95,150.89,9.51]
[1642346201028,39.92417554,150.95,150.89,9.51]
[1642346201228,39.92417554,150.95,150.9,0.26]
[1642346201428,39.92417554,150.95,150.91,9.51]
[1642346201829,39.92417554,150.95,150.91,23.80289696]
[1642346202037,4.98428886,150.99,150.92,0.26]
[1642346202239,4.98428886,151.01,150.93,9.51]
[1642346202431,4.98428886,151.01,150.94,0.26]
[1642346202731,4.98428886,151.01,150.95,9.51]
[1642346202929,41.34158757,151.0,150.95,9.51]
[1642346203330,41.34158757,151.0,150.95,9.76]
[1642346203534,41.34158757,151.0,150.95,9.51]
[1642346209441,41.34158757,151.0,150.95,9.76]
[1642346210071,41.34158757,151.0,150.95,9.51]
[1642346210471,41.34158757,151.0,150.95,9.76]
[1642346211171,41.34158757,151.0,150.95,9.51]
[1642346212169,41.34158757,151.0,150.95,9.76]
[1642346213474,41.34158757,151.0,150.95,54.07819329]
[1642346213673,41.34158757,151.0,150.96,0.26]
[1642346213873,41.34158757,151.0,150.97,9.51]
[1642346214273,41.34158757,151.0,150.98,6.0599698]
[1642346215876,41.34158757,151.0,150.98,6.3099698]
[1642346216281,41.34158757,151.0,150.98,6.0599698]
[1642346216672,41.34158757,151.0,150.98,6.3099698]
[1642346218876,41.34158757,151.0,150.97,6.0599698]
[1642346219077,41.34158757,151.0,150.91,9.51]
[1642346220379,46.31028757,151.0,150.91,9.51]
[1642346220578,46.31028757,151.0,150.91,9.76]
[1642346221976,46.31028757,151.0,150.92,18.36065145]
[1642346222178,48.18403247,151.0,150.92,18.36065145]
[1642346222379,48.18403247,151.0,150.92,18.61065145]
[1642346222577,48.18403247,151.0,150.92,0.25]
[1642346223378,48.18403247,151.0,150.9,23.4461]
[1642346223978,1.8737449,150.99,150.9,23.4461]
[1642346226384,18.72047271,150.97,150.9,23.4461]
[1642346227290,26.76547271,150.97,150.9,23.1961]
[1642346227483,26.76547271,150.97,150.82,33.1]
[1642346227684,23.2765,150.96,150.83,43.5865]
[1642346227886,23.2765,150.96,150.83,33.5865]
[1642346228083,23.2765,150.96,150.84,43.24662204]
[1642346228287,23.2765,150.96,150.85,24.6965]
[1642346228887,23.2765,150.96,150.85,24.9465]
[1642346229286,41.34158757,150.94,150.86,9.51]
[1642346229485,41.34158757,150.94,150.87,17.89131768]
[1642346229886,41.34158757,150.94,150.87,18.14131768]
[1642346230089,41.34158757,150.94,150.87,42.77081768]
[1642346230287,41.34158757,150.94,150.86,9.51]
[1642346230689,41.34158757,150.94,150.86,9.76]
[1642346231289,43.21533247,150.94,150.87,37.83883744]
[1642346231992,43.21533247,150.94,150.87,38.08883744]
[1642346232193,1.8737449,150.93,150.87,38.08883744]
[1642346232491,1.8737449,150.93,150.87,0.25]
[1642346233292,1.8737449,150.93,150.86,9.76]
[1642346234297,43.21533247,150.94,150.86,9.76]
[1642346234494,43.21533247,150.94,150.86,33.4991]
[1642346235095,1.8737449,150.93,150.86,33.4991]
[1642346235797,43.21533247,150.94,150.86,34.95847293]
[1642346236423,1.8737449,150.94,150.87,0.26]
[1642346236624,1.8737449,150.94,150.88,9.51]
[1642346236824,1.8737449,150.95,150.89,0.26]
[1642346237425,1.8737449,150.95,150.89,35.73726495]
[1642346237624,1.8737449,150.98,150.9,9.51]
[1642346237825,1.8737449,150.98,150.91,23.8409]
[1642346238527,49.00983411,150.97,150.92,48.64727477]
[1642346238925,49.00983411,150.97,150.92,48.89727477]
[1642346239127,49.00983411,150.97,150.92,48.64727477]
[1642346239528,1.8737449,150.98,150.92,48.64727477]
[1642346240528,43.50515365,150.98,150.92,48.64727477]
[1642346240930,43.50515365,150.98,150.92,48.89727477]
[1642346241135,1.8737449,150.98,150.92,48.89727477]
[1642346242033,1.8737449,150.98,150.93,23.3728]
[1642346242234,1.8737449,150.98,150.93,32.8828]
[1642346242434,1.8737449,150.98,150.93,33.1328]
[1642346242636,19.31437921,150.98,150.93,9.76]
[1642346242835,1.8737449,151.0,150.93,9.76]
[1642346243852,39.43096392,150.99,150.93,9.76]
[1642346244045,41.30470882,150.99,150.93,9.76]
[1642346244647,41.30470882,150.99,150.93,9.51]
[1642346244845,41.30470882,150.99,150.92,48.64727477]
[1642346245052,41.30470882,150.99,150.93,0.25]
[1642346245246,1.8737449,150.99,150.93,0.25]
[1642346245747,1.8737449,150.99,150.93,23.138]
[1642346247545,1.8737449,150.99,150.93,0.25]
[1642346247746,1.8737449,150.99,150.92,48.89727477]
[1642346249547,1.8737449,150.98,150.92,48.64727477]
[1642346249750,20.05094832,150.97,150.92,48.64727477]
[1642346249947,20.05094832,150.97,150.91,9.51]
[1642346250449,21.92469322,150.97,150.91,9.51]
[1642346251049,21.92469322,150.97,150.91,47.68024495]
[1642346252152,1.8737449,150.96,150.91,47.68024495]
[1642346254854,1.8737449,150.96,150.91,9.51]
[1642346259356,1.8737449,150.96,150.91,9.76]
[1642346259556,1.8737449,150.96,150.91,9.51]
[1642346259757,1.8737449,150.97,150.91,9.51]
[1642346260157,1.8737449,150.97,150.91,9.76]
[1642346260560,48.4946781,150.96,150.91,9.76]
[1642346260759,1.8737449,150.98,150.91,9.76]
[1642346260959,1.8737449,150.98,150.92,23.4716]
[1642346261462,1.8737449,150.98,150.92,23.7216]
[1642346261659,1.8737449,150.99,150.92,23.7216]
[1642346261862,41.77811181,150.97,150.93,11.06278006]
[1642346262294,41.77811181,150.97,150.93,11.31278006]
[1642346262491,1.8737449,150.99,150.93,11.31278006]
[1642346263594,48.30479598,150.99,150.93,11.31278006]
[1642346265397,1.8737449,150.98,150.93,11.31278006]
[1642346265897,1.8737449,150.98,150.93,11.06278006]
[1642346266098,1.8737449,150.98,150.93,20.57278006]
[1642346267900,1.8737449,150.97,150.93,20.82278006]
[1642346268903,1.8737449,150.98,150.93,20.82278006]
[1642346269105,1.8737449,150.98,150.94,0.26]
[1642346269303,1.8737449,150.98,150.95,9.51]
[1642346269504,1.8737449,150.98,150.96,49.3875121]
[1642346269705,1.8737449,150.98,150.95,9.51]
[1642346269910,48.30479598,150.99,150.95,9.51]
[1642346270118,1.8737449,150.99,150.95,9.51]
[1642346271014,35.78224307,150.98,150.95,9.51]
[1642346271716,37.65598797,150.98,150.95,9.51]
[1642346273215,6.06439994,150.97,150.95,9.51]
[1642346274043,7.93814484,150.97,150.95,9.51]
[1642346275846,7.93814484,150.97,150.95,33.85268969]
[1642346276145,7.93814484,150.97,150.95,9.51]
[1642346277246,4.90594487,150.97,150.95,9.51]
[1642346277651,1.8737449,150.97,150.95,9.51]
[1642346280350,13.25341978,150.97,150.95,9.51]
[1642346280750,3.03219997,150.96,150.95,9.51]
[1642346281249,3.03219997,150.96,150.95,83.51]
[1642346281652,1.8737449,150.97,150.95,83.51]
[1642346282655,1.8737449,150.97,150.95,99.10042695]
[1642346282855,1.8737449,150.98,150.95,99.10042695]
[1642346284455,0.0037449,150.98,150.95,84.97235497]
[1642346285257,3.76829575,151.04,150.95,84.97235497]
[1642346285457,3.76829575,151.04,150.96,23.0189]
[1642346285659,41.40872729,151.03,150.97,51.06203594]
[1642346289765,3.76829575,151.05,150.97,51.31203594]
[1642346290565,3.76829575,151.05,150.98,23.3572]
[1642346290766,44.44514217,151.05,150.99,9.51]
[1642346290967,40.67684642,151.05,151.0,19.58590378]
[1642346291173,40.67684642,151.05,151.01,9.51]
[1642346292598,3.76829575,151.08,151.01,9.51]
[1642346292801,3.76829575,151.08,151.01,32.2542]
[1642346293199,3.76829575,151.09,151.01,32.2542]
[1642346293599,48.8796567,151.08,151.01,32.5042]
[1642346293999,48.8796567,151.08,151.02,0.26]
[1642346294201,48.8796567,151.08,151.03,9.51]
[1642346294402,48.8796567,151.08,151.04,40.78606191]
[1642346294602,48.8796567,151.08,151.05,9.51]
[1642346296205,3.76829575,151.13,151.05,9.51]
[1642346296405,3.76829575,151.13,151.05,33.647]
[1642346297206,40.41444244,151.12,151.05,33.647]
[1642346297505,40.41444244,151.12,151.05,9.51]
[1642346298706,40.41444244,151.12,151.05,46.21497879]
[1642346299105,40.41444244,151.12,151.05,9.51]
[1642346299706,40.41444244,151.12,151.05,9.76]
[1642346303618,40.41444244,151.12,151.05,9.51]
[1642346308425,111.46924244,151.12,151.05,9.51]
[1642346309427,115.23753819,151.12,151.01,23.3153]
[1642346309624,115.23753819,151.12,151.02,9.51]
[1642346309827,64.0,151.11,150.97,24.8054]
[1642346310028,4.9659,151.09,150.98,24.4192]
[1642346310224,29.5063,151.09,150.98,24.4192]
[1642346310427,0.62761784,151.08,150.98,24.4192]
[1642346311130,5.59371784,151.08,150.98,24.4192]
[1642346312130,5.59371784,151.08,150.99,9.51]
[1642346312333,66.09,151.07,150.99,9.51]
[1642346312532,66.09,151.07,150.94,9.51]
[1642346312731,66.09,151.04,150.94,9.51]
[1642346313431,37.37147661,151.03,150.94,9.51]
[1642346314435,42.33917661,151.03,150.94,9.51]
[1642346315839,66.09,151.02,150.94,9.51]
[1642346316140,4.969,150.99,150.91,32.9338]
[1642346316338,66.09,150.98,150.89,9.51]
[1642346316937,69.76058367,150.97,150.89,9.51]
[1642346317339,69.76058367,150.97,150.9,35.23304357]
[1642346317537,74.73038367,150.97,150.9,35.23304357]
[1642346318967,74.73038367,150.97,150.87,32.1378]
[1642346319166,74.73038367,150.97,150.87,32.3878]
[1642346319969,74.73038367,150.97,150.88,37.37720499]
[1642346321371,74.73038367,150.97,150.87,32.1378]
[1642346322369,74.73038367,150.97,150.87,76.24624926]
[1642346322869,8.64038367,150.97,150.87,76.24624926]
[1642346324369,8.64038367,150.97,150.87,32.1378]
[1642346324571,8.64038367,150.97,150.87,9.51]
[1642346324770,2.9826,150.94,150.84,23.755]
[1642346324971,2.9826,150.94,150.84,24.005]
[1642346325372,103.46147661,150.93,150.84,24.005]
[1642346325773,37.37147661,150.93,150.84,24.005]
[1642346326373,2.9828,150.92,150.84,24.005]
[1642346326975,2.9828,150.92,150.84,23.755]
[1642346328176,2.9828,150.92,150.83,9.51]
[1642346328377,2.9828,150.92,150.83,9.76]
[1642346328977,2.9828,150.92,150.82,24.7134]
[1642346329181,21.96157588,150.92,150.78,9.51]
[1642346329377,2.9842,150.88,150.78,9.51]
[1642346329577,10.3742,150.88,150.78,9.51]
[1642346329778,5.37135955,150.87,150.76,23.0045]
[1642346330179,1.70077588,150.86,150.76,23.0045]
[1642346331377,2.9845,150.84,150.76,23.0045]
[1642346331578,30.18536246,150.83,150.76,23.0045]
[1642346332579,30.18536246,150.83,150.75,38.20886219]
[1642346332979,33.16996246,150.83,150.75,38.20886219]
[1642346333480,99.25996246,150.83,150.75,38.20886219]
[1642346333678,99.25996246,150.83,150.73,32.3438]
[1642346334681,99.25996246,150.83,150.73,75.39205504]
[1642346335481,99.25996246,150.83,150.73,32.3438]
[1642346335682,99.25996246,150.83,150.73,22.8338]
[1642346336487,99.25996246,150.83,150.73,63.47732172]
[1642346339392,99.25996246,150.83,150.73,22.8338]
[1642346339691,110.47073834,150.83,150.68,9.51]
[1642346339892,110.47073834,150.83,150.7,0.25]
[1642346340091,110.47073834,150.83,150.68,9.51]
[1642346340292,121.58002228,150.83,150.68,9.51]
[1642346340491,121.58002228,150.83,150.63,12.7817085]
[1642346340693,2.987,150.77,150.63,9.51]
[1642346340894,9.51,150.76,150.63,9.51]
[1642346341093,66.09,150.75,150.63,9.51]
[1642346341291,67.79077588,150.75,150.63,9.51]
[1642346341491,10.85669782,150.74,150.64,44.71746203]
[1642346341994,76.94669782,150.74,150.64,44.71746203]
[1642346342192,10.85669782,150.74,150.64,44.71746203]
[1642346342395,2.987,150.72,150.64,44.71746203]
[1642346345820,30.18536246,150.71,150.64,44.71746203]
[1642346346519,2.987,150.72,150.64,44.71746203]
[1642346347524,69.077,150.72,150.61,32.2187]
[1642346347722,69.077,150.72,150.61,22.7087]
[1642346348022,76.00929272,150.72,150.61,22.7087]
[1642346348423,33.41167014,150.71,150.62,37.88041113]
[1642346348624,99.50167014,150.71,150.62,37.88041113]
[1642346348824,2.9872,150.7,150.62,37.88041113]
[1642346350527,69.0772,150.7,150.62,37.88041113]
[1642346351226,2.9872,150.7,150.62,37.88041113]
[1642346354232,33.41167014,150.71,150.62,37.88041113]
[1642346355034,33.41167014,150.71,150.59,32.7372]
[1642346355237,48.85067014,150.71,150.57,9.51]
[1642346355434,186.69077588,150.7,150.54,3.2717085]
[1642346355635,9.9641,150.67,150.52,3.2717085]
[1642346355835,75.6,150.66,150.52,3.2717085]
[1642346356036,7.63039014,150.65,150.53,42.19360765]
[1642346356338,9.51,150.64,150.53,42.19360765]
[1642346356937,66.09,150.63,150.53,42.19360765]
[1642346357138,33.41167014,150.62,150.53,42.19360765]
[1642346357337,42.92167014,150.62,150.53,42.19360765]
[1642346357537,45.91087014,150.62,150.53,42.19360765]
[1642346360341,45.91087014,150.62,150.53,42.44360765]
[1642346361343,12.4992,150.62,150.53,42.44360765]
[1642346361541,9.51,150.62,150.53,42.44360765]
[1642346361741,9.51,150.67,150.54,0.26]
[1642346361942,9.51,150.69,150.54,127.4022]
[1642346362143,9.51,150.69,150.55,23.3746]
[1642346362344,37.63975679,150.68,150.56,38.22433207]
[1642346362747,37.63975679,150.68,150.57,24.9792]
[1642346362950,37.63975679,150.68,150.57,25.2292]
[1642346363575,2.988,150.66,150.57,25.2292]
[1642346364473,3.40230349,150.65,150.57,25.2292]
[1642346369979,2.988,150.66,150.57,25.2292]
[1642346370479,2.988,150.66,150.57,24.9792]
[1642346370877,29.25604074,150.65,150.57,24.9792]
[1642346371078,2.9886,150.63,150.57,24.9792]
[1642346371279,11.78601954,150.62,150.57,24.9792]
[1642346372277,2.9886,150.63,150.57,24.9792]
[1642346372480,2.9882,150.65,150.57,24.9792]
[1642346372677,24.9878,150.67,150.57,24.9792]
[1642346372879,24.9878,150.67,150.57,25.2292]
[1642346373279,64.5247475,150.67,150.57,25.2292]
[1642346373882,39.5369475,150.67,150.57,25.2292]
[1642346374080,2.9878,150.67,150.57,25.2292]
[1642346374279,89.2623,150.7,150.57,34.7392]
[1642346374780,51.99865496,150.69,150.57,34.7392]
[1642346374979,35.16362628,150.69,150.57,34.7392]
[1642346375181,87.16147848,150.69,150.57,34.7392]
[1642346375380,90.14887848,150.69,150.57,34.7392]
[1642346375782,38.15102628,150.69,150.57,34.7392]
[1642346375981,66.09,150.68,150.57,34.7392]
[1642346377483,5.878434,150.65,150.57,34.7392]
[1642346381008,71.968434,150.65,150.57,34.4892]
[1642346381499,74.956634,150.65,150.57,34.4892]
[1642346381700,74.956634,150.65,150.57,24.9792]
[1642346383004,74.956634,150.65,150.54,97.6717085]
[1642346383206,74.956634,150.65,150.54,3.2717085]
[1642346383405,9.51,150.64,150.54,3.2717085]
[1642346383705,2.99,150.61,150.53,0.43106014]
[1642346383906,9.51,150.6,150.53,6.014e-05]
[1642346384205,57.1045309,150.6,150.5,5.66266668]
[1642346384404,67.79077588,150.59,150.5,5.66266668]
[1642346384605,9.51,150.58,150.5,5.66266668]
[1642346384806,5.878434,150.57,150.5,55.25029096]
[1642346385304,2.9903,150.55,150.46,3.77896308]
[1642346386107,25.02779874,150.54,150.47,38.83980637]
[1642346386307,28.01819874,150.54,150.47,38.83980637]
[1642346386807,28.01819874,150.54,150.45,3.77896308]
[1642346387808,28.01819874,150.54,150.44,24.2482]
[1642346388210,2.9908,150.52,150.44,24.2482]
[1642346388812,9.39712644,150.51,150.45,39.20562942]
[1642346390932,9.39712644,150.51,150.44,24.2482]
[1642346391835,9.39712644,150.51,150.45,48.66787605]
[1642346393339,2.9903,150.54,150.45,48.66787605]
[1642346393738,19.4777,150.58,150.45,48.91787605]
[1642346393940,71.52031439,150.58,150.46,23.3803]
[1642346394240,19.4777,150.58,150.46,23.3803]
[1642346394440,29.44080014,150.57,150.46,23.6303]
[1642346394639,95.53080014,150.57,150.46,23.6303]
[1642346394839,29.44080014,150.57,150.46,23.3803]
[1642346395439,2.99,150.56,150.46,23.3803]
[1642346398142,2.99,150.56,150.46,32.8903]
[1642346403750,69.08,150.56,150.46,32.8903]
[1642346404349,2.99,150.56,150.46,32.8903]
[1642346409051,2.99,150.56,150.46,33.1403]
[1642346409251,2.99,150.56,150.46,32.8903]
[1642346410651,2.99,150.56,150.46,4.76143585]
[1642346410853,11.21077588,150.55,150.45,1.87693268]
[1642346411051,11.21077588,150.55,150.37,5.66266668]
[1642346411052,2.9918,150.52,150.37,5.66266668]
[1642346411252,9.51,150.51,150.37,5.66266668]
[1642346411553,21.51582353,150.5,150.35,282.3231]
[1642346411752,32.72659941,150.5,150.35,320.31660235]
[1642346411952,32.72659941,150.5,150.35,309.80660235]
[1642346412151,1.70077588,150.49,150.35,271.8131]
[1642346412352,66.09,150.47,150.35,271.8131]
[1642346412654,85.9596,150.47,150.35,271.8131]
[1642346412852,1.70077588,150.46,150.35,271.8131]
[1642346413052,6.28360482,150.45,150.35,271.8131]
[1642346414453,2.9932,150.43,150.35,271.8131]
[1642346414653,21.51582353,150.42,150.35,271.8131]
[1642346415455,67.79077588,150.41,150.35,271.8131]
[1642346415654,21.51582353,150.42,150.35,271.8131]
[1642346416455,2.9934,150.4,150.35,271.8131]
[1642346416658,6.28360482,150.39,150.35,271.8131]
[1642346418256,2.9934,150.4,150.35,271.8131]
[1642346418458,2.9927,150.42,150.35,271.8131]
[1642346419359,23.54473993,150.41,150.35,271.8131]
[1642346420258,26.53763993,150.41,150.35,271.8131]
[1642346421060,23.54473993,150.41,150.35,271.8131]
[1642346429798,26.53763993,150.41,150.35,271.8131]
[1642346430798,66.09,150.4,150.35,271.8131]
[1642346431196,4.25468842,150.38,150.35,271.8131]
[1642346431396,6.06439994,150.37,150.35,271.8131]
[1642346432598,72.15439994,150.37,150.35,271.8131]
[1642346432998,6.06439994,150.37,150.35,271.8131]
[1642346433697,72.15439994,150.37,150.35,271.8131]
[1642346434097,6.06439994,150.37,150.35,271.8131]
[1642346434298,4.25468842,150.38,150.35,271.8131]